Cogmind - Beta 13 *** ADVENTURER MODE // 2024.04.17 @ 20:48:36 Player: Cheeseinator Result: Destroyed by H-77 Assassin with Coil Gun Performance ------------- Evolutions (7) 3500 Regions Visited (14) 2800 Robots Destroyed (105) 525 Value Destroyed (3010) 3010 Prototype IDs (6) 120 Alien Tech Used (1) 200 Bonus (1000) 1000 TOTAL SCORE: 11155 Bonus ------- High Alert Combat Kills 252 Follower Combat Kills 287 Scanned by Researcher 500 Friendly Fire -39 Cogmind --------- Core Integrity 0/1300 Matter 140/300 Energy 99/100 System Corruption 26% Temperature Cool (0) Movement Core (50) Location -3/Testing Parts ------- > --- POWER (3) -------- (None) > --- PROPULSION (5) --- (None) > --- UTILITY (11) ----- (None) > --- WEAPON (2) ------- (None) > --- INVENTORY (5) ---- Fission Core Light Fission Core Tesla Rifle Gamma Rifle Peak State ------------ > --- POWER ------------ Light Angular Momentum Engine Light Angular Momentum Engine > --- PROPULSION ------- Improved Cesium-ion Thruster Nuclear Pulse Array Impulse Thruster > --- UTILITY ---------- Weight Redist. System Enhanced Optical Array Advanced Signal Interpreter Improved Targeting Computer Advanced Melee Analysis Suite Transmission Jammer Improved Transmission Jammer Hacking Suite System Shield > --- WEAPON ----------- High-powered Shock Rifle Neutron Cannon > --- INVENTORY -------- Fission Core Light Antimatter Cannon [Rating: 82] Favorites ----------- Power Light Deuterium Engine Engine Light Deuterium Engine Power Core Micro Fission Core Propulsion Xenon Bombardment Thruster Treads Light Treads Wheel Compact Wheel Hover Unit Improved Antigrav System Flight Unit Xenon Bombardment Thruster Utility Large Storage Unit Device Transmission Jammer Storage Large Storage Unit Processor Advanced Signal Interpreter Hackware Hacking Suite Weapon Particle Gun Energy Gun Particle Gun Energy Cannon EM Pulse Cannon Ballistic Gun Assault Rifle Ballistic Cannon Gauss Cannon Launcher Rocket Launcher Special Weapon Improved Remote Datajack Slashing Weapon Greatsword Build | -11 -10 -10 -9 -8 -7 -6 -6 -6 -5 -5 -5 -4 -3 -3 ------- Run | Yrd Mat Min Mat Mat Fac Fac Low Low Fac Ext Cet Fac Res Tes Slots Evolved 14 | . . . 2 2 2 2 . . 2 . . 2 2 . Power 2 | . . . 2 . . . . . . . . . . . Propulsion 3 | . . . . 2 . . . . . . . . 1 . Utility 9 | . . . . . 2 2 . . 2 . . 2 1 . Weapon . | . . . . . . . . . . . . . . . Parts Attached 135 | 5 14 3 13 18 14 2 1 . 15 14 1 20 6 9 Power 32 | 1 2 1 3 5 3 1 . . 7 3 . 3 1 2 Engine 29 | 1 2 1 3 5 3 1 . . 5 2 . 3 1 2 Core 3 | . . . . . . . . . 2 1 . . . . Reactor . | . . . . . . . . . . . . . . . Propulsion 30 | 2 3 . 2 5 4 . . . 3 2 . 5 1 3 Treads 8 | . 1 . 2 5 . . . . . . . . . . Leg . | . . . . . . . . . . . . . . . Wheel 5 | 2 2 . . . . . . . . . . . . 1 Hover 2 | . . . . . . . . . . . . . . 2 Flight 15 | . . . . . 4 . . . 3 2 . 5 1 . Utility 25 | . 3 . . 1 5 1 1 . 5 3 . 5 . 1 Device 13 | . . . . 1 3 . . . 2 2 . 4 . 1 Storage 2 | . 1 . . . . . . . 1 . . . . . Processor 8 | . 2 . . . 2 1 1 . 1 . . 1 . . Hackware 2 | . . . . . . . . . 1 1 . . . . Protection . | . . . . . . . . . . . . . . . Artifact . | . . . . . . . . . . . . . . . Weapon 48 | 2 6 2 8 7 2 . . . . 6 1 7 4 3 Energy Gun 16 | 1 3 1 2 3 . . . . . 1 . 2 2 1 Energy Cannon 10 | . . . 5 2 . . . . . 1 . 2 . . Ballistic Gun 10 | 1 3 . . . . . . . . 3 1 1 . 1 Ballistic Cannon 5 | . . . . . 1 . . . . . . 2 1 1 Launcher 3 | . . . 1 2 . . . . . . . . . . Special Weapon 3 | . . 1 . . . . . . . 1 . . 1 . Impact Weapon . | . . . . . . . . . . . . . . . Slashing Weapon 1 | . . . . . 1 . . . . . . . . . Piercing Weapon . | . . . . . . . . . . . . . . . Special Melee Weapon . | . . . . . . . . . . . . . . . Unidentified Prototypes 6 | . . . . . . . 1 . . 1 . 2 1 1 Parts Lost 44 | . 1 . 1 5 . . 1 . . 9 2 13 . 12 Power 9 | . . . . 2 . . 1 . . 3 . 1 . 2 Propulsion 16 | . 1 . 1 2 . . . . . 2 . 5 . 5 Utility 12 | . . . . 1 . . . . . 2 1 5 . 3 Weapon 7 | . . . . . . . . . . 2 1 2 . 2 Highest Loss Streak 7 | . 1 . 1 4 . . 1 . . 4 2 6 . 7 To Critical Strikes 2 | . . . . . . . . . . . 1 1 . . Average Slot Usage (%) 74 | . 80 100 80 79 69 84 87 86 82 74 70 57 27 15 Engine 10 | . 14 14 18 11 11 20 18 13 10 4 5 2 . . Treads 7 | . 1 . 11 33 9 . . . . . . . . . Wheel 4 | . 17 28 8 . . . . . . . . . . . Flight 9 | . . . . . 19 26 26 26 22 16 11 12 8 . Device 5 | . . . . . 8 13 13 13 17 7 7 8 . . Storage 5 | . 13 14 11 9 2 . . . . . . . . . Processor 13 | . 6 14 11 7 4 17 22 26 23 23 23 16 9 7 Hackware 1 | . . . . . . . . . . 5 11 9 4 1 Energy Gun 4 | . 16 27 3 1 5 . . . . . 5 2 . . Energy Cannon 3 | . . . 15 9 . . . . . . . 2 . . Ballistic Gun 2 | . 10 . . . . . . . . 6 3 . . 1 Launcher 1 | . . . 1 7 . . . . . . . . . . Slashing Weapon 1 | . . . . . 2 6 6 6 5 1 . . . . Naked Turns 47 | . . . . . . . . . . . . . . 47 Heaviest Build 62 | 7 29 36 62 40 36 22 22 17 26 22 20 35 10 20 Greatest Support 80 | 32 32 32 40 80 80 24 24 24 30 25 19 32 8 24 Greatest Overweight (x) 11 | 1 9 1 3 . 11 . . . 2 1 1 2 1 1 Average Overweight (x) . | . . . . . . . . . . . . . . . Largest Inventory Capacity 15 | 5 15 15 15 15 15 5 5 5 8 5 5 5 5 5 Average Capacity 9 | 5 14 15 15 15 8 5 5 5 5 5 5 5 5 5 Most Carried 15 | 3 9 11 15 15 11 5 5 5 5 5 5 5 5 5 Average Carried 6 | 1 4 8 12 12 6 4 5 5 4 4 4 3 4 4 Final Capacity 15 | 5 15 15 15 15 5 5 5 5 5 5 5 5 5 5 Final Carried 13 | 2 9 8 13 9 5 5 5 5 5 5 4 4 5 4 Class Distribution -------------------- 33% | Mutant 19% | Ninja 18% | Scavenger-Mutant 7% | Hacker-Mutant 6% | Scavenger-Sprinter 5% | Hacker-Sprinter 5% | Hacker-Ninja 3% | Sprinter Dominant Class ---------------- Mutant | -10/Materials Mutant | -10/Mines Mutant | -9/Materials Scavenger-Mutant | -8/Materials Sprinter | -7/Factory Ninja | -6/Factory Ninja | -6/Lower Caves Ninja | -6/Lower Caves Ninja | -5/Factory Scavenger-Sprinter | -5/Extension Hacker-Mutant | -5/Cetus Hacker-Mutant | -4/Factory Hacker-Sprinter | -3/Research Mutant | -3/Testing Resources | -11 -10 -10 -9 -8 -7 -6 -6 -6 -5 -5 -5 -4 -3 -3 ----------- Run | Yrd Mat Min Mat Mat Fac Fac Low Low Fac Ext Cet Fac Res Tes Matter Collected 2012 | 195 245 97 192 367 113 47 15 . 120 358 . 87 . 176 Remotely 50 | . . . . 50 . . . . . . . . . . Salvage Created 3867 | . 403 123 383 1226 113 . 110 . 489 497 25 286 . 212 Parts 226 | . 28 5 32 61 9 . 5 . 27 29 . 12 . 18 Haulers Intercepted 1 | . 1 . . . . . . . . . . . . . Recyclers Shooed 7 | . 4 1 . 1 . . . . 1 . . . . . Parts Field Recycled . | . . . . . . . . . . . . . . . Retrieved Matter . | . . . . . . . . . . . . . . . Parts Self-Destructed 1 | . . . . . . . 1 . . . . . . . Prevented 3 | . . . . . . . 3 . . . . . . . Kills | -11 -10 -10 -9 -8 -7 -6 -6 -6 -5 -5 -5 -4 -3 -3 ------- Run | Yrd Mat Min Mat Mat Fac Fac Low Low Fac Ext Cet Fac Res Tes Combat Hostiles Destroyed 74 | . 8 3 15 25 1 . 1 . 6 7 . 5 . 3 Melee 10 | . . . . . 1 . 1 . 6 2 . . . . Guns 23 | . 8 3 2 . . . . . . 5 . 5 . . Cannons 25 | . . . 13 9 . . . . . . . . . 3 AOE 11 | . . . . 11 . . . . . . . . . . Classes Destroyed 17 | . 5 . 1 5 . . 2 . 1 2 . . . 1 Worker 3 | . . . . 2 . . . . . . . . . 1 Builder 2 | . . . . . . . . . . 1 . . . 1 Tunneler 1 | . . . . 1 . . . . . . . . . . Hauler 1 | . 1 . . . . . . . . . . . . . Recycler 8 | . 2 1 . 2 . . . . 2 . . 1 . . Mechanic 1 | . . . . 1 . . . . . . . . . . Operator 2 | . . . . . . . . . 1 . . . . 1 Watcher 12 | . 1 . . 5 2 . . . 2 1 1 . . . Swarmer 37 | . 6 3 10 8 . . . . 5 . . 5 . . Grunt 18 | . 2 . 2 10 1 . . . 1 2 . . . . Brawler 3 | . . . . 2 . . . . . 1 . . . . Researcher 1 | . . . . . . . . . . . . . . 1 Sentry 9 | . . . 3 4 . . . . . 2 . . . . Hunter 1 | . . . . 1 . . . . . . . . . . Programmer 5 | . . . . . . . . . . 2 . . . 3 Tinkerer 1 | . . . . . . . 1 . . . . . . . Mutant 1 | . . . . . . . 1 . . . . . . . Best Kill Streak 8 | . 7 3 5 8 2 . 1 . 3 3 1 6 . 4 Combat Bots Only 7 | . 7 3 5 5 1 . 1 . 3 3 . 5 . 3 Max Kills in Single Turn 2 | . 1 1 1 2 1 . 1 . 1 1 1 1 . 1 Gunslinging . | . . . . . . . . . . . . . . . Exploded 2 | . . . . 2 . . . . . . . . . . Melee 1 | . . . . . 1 . 1 . 1 1 . . . . Uniques/NPCs Destroyed . | . . . . . . . . . . . . . . . Combat | -11 -10 -10 -9 -8 -7 -6 -6 -6 -5 -5 -5 -4 -3 -3 -------- Run | Yrd Mat Min Mat Mat Fac Fac Low Low Fac Ext Cet Fac Res Tes Hostile Shots Fired 700 | . 39 11 100 96 1 9 10 3 27 81 10 90 17 206 Missed 238 | . 10 1 20 19 1 5 3 3 10 34 3 38 11 80 Damage Taken 6237 | . 283 63 625 1023 116 24 82 . 148 841 141 715 105 2071 Core 2218 | . 58 19 230 161 24 8 17 . 36 156 38 168 33 1270 Absorbed by Shields 83 | . . . . . . . . . 58 16 . . . 9 Ignored by Resistances 1675 | . 86 20 176 296 31 7 24 . 59 234 38 181 22 501 Core Remaining (%) 79 | 100 . 69 42 70 96 . . 97 . . 77 85 . . Volleys Fired 231 | . 33 10 33 57 . . . . . 51 2 18 4 23 Largest 2 | . 2 2 2 2 . . . . . 2 2 1 1 1 Hottest 165 | . 70 165 130 119 . . . . . 58 85 110 10 65 Shots Fired 328 | . 65 21 53 77 . . . . . 63 3 18 4 24 Gun 171 | . 65 20 4 . . . . . . 53 3 17 . 9 Cannon 122 | . . . 48 58 . . . . . . . 1 . 15 Launcher 20 | . . . 1 19 . . . . . . . . . . Special 15 | . . 1 . . . . . . . 10 . . 4 . Kinetic 127 | . 33 . . . . . . . . 53 2 17 . 22 Thermal 98 | . 32 21 45 . . . . . . . . . . . Explosive 20 | . . . 1 19 . . . . . . . . . . Electromagnetic 69 | . . . 7 58 . . . . . . 1 1 . 2 Robot Hit Streak 23 | . 14 7 22 12 . . . . . 22 12 23 9 19 Robot Miss Streak 4 | . 3 1 3 3 . . . . . 3 . 1 . 4 Penetration Max 2 | . . . . . . . . . . 1 . . . 2 Secondary Targets 1 | . 1 . . . . . . . . . . . . . Max Gunslinging Chain 1 | . 1 . . . . . . . . . . . . . Shots Hit Robots 283 | . 45 14 39 55 5 . 7 . 19 56 3 16 4 20 Core Hits 145 | . 18 5 18 42 3 . 2 . 9 19 2 7 . 20 Critical Kills . | . . . . . . . . . . . . . . . Critical Parts Destroyed 1 | . . . . . . . . . . 1 . . . . Critical Strikes 7 | . 4 . . 1 1 . . . . 1 . . . . Burn 4 | . 4 . . . . . . . . . . . . . Destroy 1 | . . . . . . . . . . 1 . . . . Corrupt 1 | . . . . 1 . . . . . . . . . . Sever 1 | . . . . . 1 . . . . . . . . . Melee Attacks 64 | . . . . . 5 . 17 . 33 9 . . . . Impact . | . . . . . . . . . . . . . . . Slashing 64 | . . . . . 5 . 17 . 33 9 . . . . Piercing . | . . . . . . . . . . . . . . . Sneak Attacks 5 | . . . . . . . 1 . 4 . . . . . Combat Hostiles . | . . . . . . . . . . . . . . . Follow-up Attacks . | . . . . . . . . . . . . . . . Damage Inflicted 9813 | . 630 219 940 2821 316 . 606 . 1246 1384 164 482 55 950 Guns 2839 | . 629 219 52 . . . . . . 1244 73 417 . 205 Cannons 2552 | . . . 820 1148 . . . . . . . . . 584 Explosions 1801 | . . . 49 1661 . . . . . . 91 . . . Melee 2308 | . . . . . 316 . 606 . 1246 140 . . . . Ramming 313 | . 1 . 19 12 . . . . . . . 65 55 161 Kinetic 2772 | . 300 . . . . . . . . 1244 31 417 . 780 Thermal 1915 | . 329 219 833 443 . . . . . . 91 . . . Explosive 1267 | . . . 49 1218 . . . . . . . . . . Electromagnetic 1238 | . . . 39 1148 . . . . . . 42 . . 9 Impact . | . . . . . . . . . . . . . . . Slashing 2308 | . . . . . 316 . 606 . 1246 140 . . . . Piercing . | . . . . . . . . . . . . . . . Highest Corruption 26 | . 1 1 . 5 . . . . . 4 4 8 4 26 Average Corruption 4 | . 1 1 . 4 . . . . . 3 4 8 4 15 Corruption Purged . | . . . . . . . . . . . . . . . Corruption Blocked . | . . . . . . . . . . . . . . . Effects 33 | . 3 3 . 1 . . . . . 10 . 4 1 11 Message Errors 4 | . . . . . . . . . . 3 . 1 . . Matter Fused 9 | . 2 1 . . . . . . . 1 . 1 . 4 Heat Flow Errors 4 | . . 1 . . . . . . . . . 1 . 2 Energy Discharges 5 | . . . . 1 . . . . . 1 . . . 3 Parts Rejected 1 | . . . . . . . . . . 1 . . . . Parts Fused 1 | . . . . . . . . . . . . . 1 . Data Loss (minor) 2 | . . . . . . . . . . . . 1 . 1 Data Loss (major) 1 | . . . . . . . . . . 1 . . . . Misfires 4 | . . 1 . . . . . . . 2 . . . 1 Alerts 2 | . 1 . . . . . . . . 1 . . . . Overload Shots . | . . . . . . . . . . . . . . . Overflow Damage 594 | . . . 16 99 17 . 219 . 235 . 8 . . . Projectiles 42 | . . . 16 26 . . . . . . . . . . Explosions 81 | . . . . 73 . . . . . . 8 . . . Melee 471 | . . . . . 17 . 219 . 235 . . . . . Knockbacks 13 | . . . . . . . . . . . . . 1 12 Impact 4 | . . . . . . . . . . . . . 1 3 Kinetic 8 | . . . . . . . . . . . . . . 8 Secondary 1 | . . . . . . . . . . . . . . 1 Self-Inflicted Damage 380 | . . . 40 177 . . . . . . . 65 26 72 Shots 8 | . . . 1 7 . . . . . . . . . . Rammed 57 | . 1 . 3 2 . . . . . . . 1 5 45 Targets Rammed 58 | . 1 . 3 3 . . . . . . . 1 5 45 Kicked . | . . . . . . . . . . . . . . . Crushed 1 | . . . . 1 . . . . . . . . . . Highest Temperature 540 | . 85 414 540 456 2 62 83 . . 35 26 127 8 201 Average Temperature 97 | . 27 128 200 125 2 21 20 . . 13 19 52 8 101 Received Heat Transfer 890 | . 60 . 30 378 . 12 100 . 6 180 9 69 46 . Effects 31 | . . 2 20 9 . . . . . . . . . . Shutdowns 18 | . . 1 10 7 . . . . . . . . . . Energy Bleed 4 | . . 1 3 . . . . . . . . . . . Interference 4 | . . . 4 . . . . . . . . . . . Matter Decay 1 | . . . 1 . . . . . . . . . . . Short Circuit 2 | . . . 1 1 . . . . . . . . . . Damage (minor) 1 | . . . . 1 . . . . . . . . . . Damage (core) 1 | . . . 1 . . . . . . . . . . . Siege Activations . | . . . . . . . . . . . . . . . Robots Corrupted 6 | . . . . 6 . . . . . . . . . . Combat Hostiles 5 | . . . . 5 . . . . . . . . . . Parts Fried 10 | . . . . 10 . . . . . . . . . . Impact Corruptions . | . . . . . . . . . . . . . . . Robots Melted . | . . . . . . . . . . . . . . . Combat Hostiles . | . . . . . . . . . . . . . . . Parts Melted 6 | . 3 1 1 . . . . . . 1 . . . . Heat Transferred 3695 | . 1258 518 1369 400 . . . . . . 150 . . . Parts Sabotaged . | . . . . . . . . . . . . . . . Parts Stolen . | . . . . . . . . . . . . . . . Parts Stripped . | . . . . . . . . . . . . . . . Power Chain Reactions 4 | . . . . 3 . . . . . . 1 . . . Alert | -11 -10 -10 -9 -8 -7 -6 -6 -6 -5 -5 -5 -4 -3 -3 ------- Run | Yrd Mat Min Mat Mat Fac Fac Low Low Fac Ext Cet Fac Res Tes Peak Influence 834 | . 209 81 478 834 361 82 . . 283 345 77 189 64 107 Initial 289 | . . 4 26 120 289 67 . . 21 40 37 27 4 30 Average 203 | . 77 63 277 536 294 70 . . 96 171 53 75 20 47 Maximum Alert Level 3 | . 1 . 2 3 1 . . . 1 1 . . . . Low Security (%) 61 | 100 95 100 30 3 4 100 . . 84 67 100 100 100 100 Level 1 22 | . 4 . 58 18 95 . . . 15 32 . . . . Level 2 10 | . . . 11 55 . . . . . . . . . . Level 3 4 | . . . . 22 . . . . . . . . . . Level 4 . | . . . . . . . . . . . . . . . Level 5 . | . . . . . . . . . . . . . . . High Security . | . . . . . . . . . . . . . . . Max Security . | . . . . . . . . . . . . . . . Squads Dispatched 9 | . 1 . 1 2 1 . . . 1 1 . . . 2 Investigation 4 | . 1 . . . 1 . . . 1 1 . . . . Extermination . | . . . . . . . . . . . . . . . Reinforcement 4 | . . . 1 1 . . . . . . . . . 2 Assault 1 | . . . . 1 . . . . . . . . . . Garrison . | . . . . . . . . . . . . . . . Intercept . | . . . . . . . . . . . . . . . Searches Triggered . | . . . . . . . . . . . . . . . Construction Impeded . | . . . . . . . . . . . . . . . Haulers Reinforced . | . . . . . . . . . . . . . . . Active Scanning Responses . | . . . . . . . . . . . . . . . Cargo Convoy Interrupts . | . . . . . . . . . . . . . . . Stealth | -11 -10 -10 -9 -8 -7 -6 -6 -6 -5 -5 -5 -4 -3 -3 --------- Run | Yrd Mat Min Mat Mat Fac Fac Low Low Fac Ext Cet Fac Res Tes Distress Signals 7 | . . . 2 2 1 . . . 1 . 1 . . . Communications Jammed 88 | . . . . . 1 . . . 1 85 . 1 . . Distress Signals 88 | . . . . . 1 . . . 1 85 . 1 . . Times Spotted 174 | . 16 3 27 36 3 1 5 3 16 23 5 15 12 9 Peak Tracking Total 9 | . 4 3 7 6 2 1 4 3 7 7 5 9 9 4 Tactical Retreats 14 | . . . 1 4 . . . 1 1 3 . 2 2 . Traps | -11 -10 -10 -9 -8 -7 -6 -6 -6 -5 -5 -5 -4 -3 -3 ------- Run | Yrd Mat Min Mat Mat Fac Fac Low Low Fac Ext Cet Fac Res Tes Traps Triggered 7 | . 2 . . 1 1 . . . 1 1 . . . 1 Indirectly . | . . . . . . . . . . . . . . . Trap Hack Attempts . | . . . . . . . . . . . . . . . Triggered . | . . . . . . . . . . . . . . . Disarmed . | . . . . . . . . . . . . . . . Reprogrammed . | . . . . . . . . . . . . . . . Reused . | . . . . . . . . . . . . . . . Traps Extracted . | . . . . . . . . . . . . . . . Installed . | . . . . . . . . . . . . . . . Triggered 3 | . . . . . . . 3 . . . . . . . Machines | -11 -10 -10 -9 -8 -7 -6 -6 -6 -5 -5 -5 -4 -3 -3 ---------- Run | Yrd Mat Min Mat Mat Fac Fac Low Low Fac Ext Cet Fac Res Tes Machines Disabled 12 | . . . . 8 . . 3 . . 1 . . . . Max in Single Turn 2 | . . . . 2 . . 1 . . 1 . . . . Machines Repaired . | . . . . . . . . . . . . . . . Machines Dismantled . | . . . . . . . . . . . . . . . Machines Sabotaged . | . . . . . . . . . . . . . . . Overloaded Fab Kills . | . . . . . . . . . . . . . . . Hacking | -11 -10 -10 -9 -8 -7 -6 -6 -6 -5 -5 -5 -4 -3 -3 --------- Run | Yrd Mat Min Mat Mat Fac Fac Low Low Fac Ext Cet Fac Res Tes Machines Accessed 13 | . . . . . 1 . . . 2 5 . 5 . . Terminals 10 | . . . . . 1 . . . 2 5 . 2 . . Fabricators 2 | . . . . . . . . . . . . 2 . . Repair Stations . | . . . . . . . . . . . . . . . Recycling Units 1 | . . . . . . . . . . . . 1 . . Scanalyzers . | . . . . . . . . . . . . . . . Garrison Access . | . . . . . . . . . . . . . . . Total Hacks 29 | . . . . . 3 . . . 8 7 . 11 . . Successful 21 | . . . . . 1 . . . 6 4 . 10 . . Failed 8 | . . . . . 2 . . . 2 3 . 1 . . Catastrophic 5 | . . . . . 1 . . . 2 1 . 1 . . Database Lockouts . | . . . . . . . . . . . . . . . Manual 33 | . . . . . 5 . . . 14 2 . 11 1 . Terminals 22 | . . . . . 3 . . . 8 7 . 4 . . Fabricators 4 | . . . . . . . . . . . . 4 . . Repair Stations . | . . . . . . . . . . . . . . . Recycling Units 3 | . . . . . . . . . . . . 3 . . Scanalyzers . | . . . . . . . . . . . . . . . Garrison Access . | . . . . . . . . . . . . . . . Terminal Hacks 10 | . . . . . 1 . . . 4 4 . 1 . . Record 6 | . . . . . 1 . . . 4 . . 1 . . Open Door 4 | . . . . . . . . . . 4 . . . . Fabricator Hacks 1 | . . . . . . . . . . . . 1 . . Network Status 1 | . . . . . . . . . . . . 1 . . Repair Station Hacks . | . . . . . . . . . . . . . . . Recycling Unit Hacks 3 | . . . . . . . . . . . . 3 . . Retrieve Matter 1 | . . . . . . . . . . . . 1 . . Retrieve Components 2 | . . . . . . . . . . . . 2 . . Scanalyzer . | . . . . . . . . . . . . . . . Garrison Access Hacks . | . . . . . . . . . . . . . . . Unauthorized Hacks 4 | . . . . . . . . . 1 . . 3 . . Terminals 2 | . . . . . . . . . 1 . . 1 . . Botnet 2 | . . . . . . . . . 1 . . 1 . . Fabricators 2 | . . . . . . . . . . . . 2 . . Liberate 2 | . . . . . . . . . . . . 2 . . Repair Stations . | . . . . . . . . . . . . . . . Recycling Units . | . . . . . . . . . . . . . . . Scanalyzers . | . . . . . . . . . . . . . . . Garrison Access . | . . . . . . . . . . . . . . . Data Cores Recovered . | . . . . . . . . . . . . . . . Used . | . . . . . . . . . . . . . . . Hacking Detections 7 | . . . . . 1 . . . 2 1 . 3 . . Full Trace Events 3 | . . . . . 1 . . . 1 1 . . . . Feedback Events . | . . . . . . . . . . . . . . . Feedback Blocked . | . . . . . . . . . . . . . . . Robot Schematics Acquired 2 | . . . . . . . . . . . . . . 2 Robots Built . | . . . . . . . . . . . . . . . Authchips . | . . . . . . . . . . . . . . . Time . | . . . . . . . . . . . . . . . Total Robot Build Rating . | . . . . . . . . . . . . . . . Part Schematics Acquired 1 | . . . . . . . . . . . . . . 1 Parts Built . | . . . . . . . . . . . . . . . Authchips . | . . . . . . . . . . . . . . . Time . | . . . . . . . . . . . . . . . Total Part Build Rating . | . . . . . . . . . . . . . . . Parts Repaired . | . . . . . . . . . . . . . . . Time . | . . . . . . . . . . . . . . . Parts Recycled . | . . . . . . . . . . . . . . . Recycled Matter . | . . . . . . . . . . . . . . . Retrieved Matter . | . . . . . . . . . . . . . . . Retrieved Components 1 | . . . . . . . . . . . . 1 . . Parts Scanalyzed . | . . . . . . . . . . . . . . . Part Schematics Acquired . | . . . . . . . . . . . . . . . Parts Damaged . | . . . . . . . . . . . . . . . Bothacking | -11 -10 -10 -9 -8 -7 -6 -6 -6 -5 -5 -5 -4 -3 -3 ------------ Run | Yrd Mat Min Mat Mat Fac Fac Low Low Fac Ext Cet Fac Res Tes Used RIF Installer . | . . . . . . . . . . . . . . . Robots Hacked 2 | . . . . . . . . . . 1 . . 1 . Non-combat 1 | . . . . . . . . . . 1 . . . . Combat 1 | . . . . . . . . . . . . . 1 . Robot Hacks Applied 4 | . . . . . . . . . . 3 . . 1 . parse_system 2 | . . . . . . . . . . 1 . . 1 . no_distress 1 | . . . . . . . . . . 1 . . . . check_alert 1 | . . . . . . . . . . 1 . . . . Relay Couplers Released . | . . . . . . . . . . . . . . . Fabnet Peak Effective % . | . . . . . . . . . . . . . . . Robots Rewired 3 | . . . . . . . . . . 3 . . . . Allies Hacked . | . . . . . . . . . . . . . . . Hacks Repelled . | . . . . . . . . . . . . . . . Allies | -11 -10 -10 -9 -8 -7 -6 -6 -6 -5 -5 -5 -4 -3 -3 -------- Run | Yrd Mat Min Mat Mat Fac Fac Low Low Fac Ext Cet Fac Res Tes Total Allies 13 | . . 4 . . . . . . . 9 . . . . Largest Group 6 | . . 4 3 . . . . . . 6 . . . . Highest-Rated Group 169 | . . 71 40 . . . . . . 169 . . . . Highest-Rated Ally 31 | . . 31 16 . . . . . . 31 . . . . Total Orders 3 | . . 3 . . . . . . . . . . . . FOLLOW 1 | . . 1 . . . . . . . . . . . . GUARD 1 | . . 1 . . . . . . . . . . . . AID 1 | . . 1 . . . . . . . . . . . . Ally Attacks 97 | . . . 22 . . . . . . 75 . . . . Total Damage 1550 | . . . 222 . . . . . . 1328 . . . . Kills 10 | . . . 5 . . . . . . 5 . . . . Allies Corrupted 2 | . . . . . . . . . . 2 . . . . Allies Melted . | . . . . . . . . . . . . . . . Intel | -11 -10 -10 -9 -8 -7 -6 -6 -6 -5 -5 -5 -4 -3 -3 ------- Run | Yrd Mat Min Mat Mat Fac Fac Low Low Fac Ext Cet Fac Res Tes Robot Analysis Total . | . . . . . . . . . . . . . . . Derelict Logs Recovered 3 | . . 2 . . . . . 1 . . . . . . Drone Launches . | . . . . . . . . . . . . . . . Drone Recoveries . | . . . . . . . . . . . . . . . Exploration | -11 -10 -10 -9 -8 -7 -6 -6 -6 -5 -5 -5 -4 -3 -3 ------------- Run | Yrd Mat Min Mat Mat Fac Fac Low Low Fac Ext Cet Fac Res Tes Turns Passed 5639 | 70 690 351 553 954 421 63 188 67 828 578 30 415 148 283 Spaces Moved 6079 | 67 430 229 230 474 645 143 411 216 882 1070 56 615 337 274 Core 234 | 27 27 . . . 2 . . . . . . 9 . 169 Treads 676 | . 1 . 124 474 77 . . . . . . . . . Legs . | . . . . . . . . . . . . . . . Wheels 793 | 40 402 229 106 . . . . . . . . . . 16 Hover 30 | . . . . . . . . . . . . . . 30 Flight 4346 | . . . . . 566 143 411 216 882 1070 56 606 337 59 Fastest Speed 26 | 50 100 100 115 160 31 31 31 31 29 30 34 26 32 32 Average Speed 60 | 88 128 111 149 160 49 31 31 31 31 31 40 42 32 60 Slowest Speed 600 | 100 500 115 320 160 600 31 31 31 194 106 106 192 112 100 Overloaded Moves . | . . . . . . . . . . . . . . . Propulsion Burnouts . | . . . . . . . . . . . . . . . Robots Hopped 19 | . . . . . 1 . . . . 7 . 7 3 1 Cave-ins Triggered . | . . . . . . . . . . . . . . . Exploration Rate (%) 30 | 3 67 43 27 44 14 3 49 40 16 65 23 16 13 29 Regions Visited 14 Branch Regions 6 Pre-discovered Areas . | . . . . . . . . . . . . . . . Known Exits Taken 12 | . 1 1 1 . 1 1 1 1 1 1 1 1 1 . Unknown Exits Taken 2 | 1 . . . 1 . . . . . . . . . . Scrap Searched 2 | . . . . . . . 1 1 . . . . . . Spaces Dug 26 | . . 1 . . . . 7 . 11 7 . . . . Terrain Destroyed 225 | . . 1 13 168 . . 7 . 11 10 10 4 . 1 Melee 25 | . . . . . . . 7 . 11 7 . . . . Projectile 10 | . . 1 2 . . . . . . 3 . 3 . 1 AOE 189 | . . . 11 168 . . . . . . 10 . . . Terrain Rammed 1 | . . . . . . . . . . . . 1 . . Walls Destroyed 1 | . . . . . . . . . . . . 1 . . Machines Disabled . | . . . . . . . . . . . . . . . Actions | -11 -10 -10 -9 -8 -7 -6 -6 -6 -5 -5 -5 -4 -3 -3 --------- Run | Yrd Mat Min Mat Mat Fac Fac Low Low Fac Ext Cet Fac Res Tes Total 7546 | 76 498 304 390 592 738 160 435 215 1362 1232 60 743 375 366 Wait 837 | 1 4 59 84 27 55 15 6 . 416 71 . 80 19 . Move 6030 | 66 429 228 229 473 642 142 410 215 881 1056 55 602 330 272 Hop 17 | . . . . . 1 . . . . 6 . 6 3 1 Pick Up 35 | 3 7 1 12 2 4 1 . . 1 1 . 1 . 2 Fast Attach 86 | 5 10 . 3 7 13 1 2 . 13 11 . 12 3 6 Attach 39 | . 1 1 7 8 1 1 . . 2 3 1 8 3 3 Detach 49 | . 4 1 7 5 5 . . . 4 3 1 11 6 2 Swap 11 | . 3 2 3 3 . . . . . . . . . . Drop 61 | 1 6 2 9 7 12 . . . 12 3 1 4 2 2 Fire 231 | . 33 10 33 57 . . . . . 51 2 18 4 23 Melee 64 | . . . . . 5 . 17 . 33 9 . . . . Ram 55 | . 1 . 3 . . . . . . . . 1 5 45 Kick . | . . . . . . . . . . . . . . . Crush 3 | . . . . 3 . . . . . . . . . . Escape Stasis 28 | . . . . . . . . . . 18 . . . 10 Rewire . | . . . . . . . . . . . . . . . Trap . | . . . . . . . . . . . . . . . Miscellaneous . | . . . . . . . . . . . . . . . Route ------- -11/Scrapyard -10/Materials (discovered 3 exits: *Mat x2 / *Min) -10/Mines -9/Materials (discovered 2 exits: *Mat / *Sto) -8/Materials -7/Factory -6/Factory (discovered 2 exits: *Fac / *Low) -6/Lower Caves -6/Lower Caves -5/Factory -5/Extension (discovered 2 exits: *Fac / *Cet) -5/Cetus -4/Factory -3/Research -3/Testing History --------- Turn | Location | Event 10 | -11/Scrapyard | Discovered new exit (range 16) 71 | -11/Scrapyard | Entered Materials 269 | -10/Materials | Destroyed 7 combat bots 314 | -10/Materials | Build established: Mutant 314 | -10/Materials | Discovered new exit (range 12) 504 | -10/Materials | Identified exit to Mines 528 | -10/Materials | Discovered new exit (range 15) 672 | -10/Materials | Discovered new exit (range 10) 761 | -10/Materials | Entered Mines 775 | -10/Mines | Received a Mining Laser from a helpful Derelict 798 | -10/Mines | Met a Derelict bent on vengeance 942 | -10/Mines | Learned Materials non-interactive machine intel 997 | -10/Mines | Identified exit to Materials 1029 | -10/Mines | Assisted by bots powering up and referring to "LRC-V3" 1112 | -10/Mines | Entered Materials 1112 | -9/Materials | Accompanied by 3 allies 1112 | -9/Materials | Evolved 2 slots: Power x2 1113 | -9/Materials | Loaded intel: 23 non-interactive machine locations 1208 | -9/Materials | Discovered new exit (range 6) 1216 | -9/Materials | Identified exit to Storage 1306 | -9/Materials | Lost 3 allies 1388 | -9/Materials | Core integrity fell below 50% 1612 | -9/Materials | Discovered new exit (range 10) 1663 | -9/Materials | Identified exit to Materials 1665 | -9/Materials | Entered another Materials area 1665 | -8/Materials | Evolved 2 slots: Propulsion x2 1968 | -8/Materials | Build established: Scavenger-Mutant 2072 | -8/Materials | Discovered new exit (range 16) 2465 | -8/Materials | First assault squad dispatched 2563 | -8/Materials | Lost 4 parts (2p1n1u) 2619 | -8/Materials | Entered Factory 2619 | -7/Factory | Evolved 2 slots: Utility x2 3037 | -7/Factory | Discovered new exit (range 9) 3040 | -7/Factory | Identified exit to Factory 3040 | -7/Factory | Entered another Factory area 3040 | -6/Factory | Evolved 2 slots: Utility x2 3074 | -6/Factory | Discovered new exit (range 6) 3077 | -6/Factory | Identified exit to Lower Caves 3078 | -6/Factory | Discovered new exit (range 15) 3083 | -6/Factory | Identified exit to Factory 3103 | -6/Factory | Entered Lower Caves 3181 | -6/Lower Caves | Found Alien Artifact 3181 | -6/Lower Caves | Identified Dimensional Node Initializer 3181 | -6/Lower Caves | Initialized slip node 3245 | -6/Lower Caves | Encountered a Warlord checkpoint 3248 | -6/Lower Caves | Build established: Ninja 3260 | -6/Lower Caves | Attacked by a delusional Derelict stockpiling Unaware 3288 | -6/Lower Caves | Discovered new exit (range 7) 3290 | -6/Lower Caves | Identified exit to Lower Caves 3291 | -6/Lower Caves | Entered another Lower Caves area 3316 | -6/Lower Caves | Spotted B-75 Beast 3358 | -6/Lower Caves | Entered Factory 3358 | -5/Factory | Evolved 2 slots: Utility x2 4151 | -5/Factory | Discovered new exit (range 14) 4160 | -5/Factory | Identified exit to Extension 4186 | -5/Factory | Entered Extension 4233 | -5/Extension | Spotted B-75 Beast 4380 | -5/Extension | Lost 4 parts (1p1n1u1w) 4440 | -5/Extension | Rescued a captive Derelict 4441 | -5/Extension | Rescued a captive Derelict 4544 | -5/Extension | Rescued a captive Derelict 4545 | -5/Extension | Rescued a captive Derelict 4555 | -5/Extension | Rescued a captive Derelict 4572 | -5/Extension | Rescued a captive Derelict 4638 | -5/Extension | Build established: Scavenger-Sprinter 4703 | -5/Extension | Spotted B-75 Beast 4744 | -5/Extension | Lost 5 allies 4744 | -5/Extension | Discovered new exit (range 18) 4744 | -5/Extension | Discovered new exit (range 16) 4752 | -5/Extension | Identified exit to Cetus 4760 | -5/Extension | Identified exit to Factory 4764 | -5/Extension | Entered Cetus 4769 | -5/Cetus | Spotted Cetus Guard 4771 | -5/Cetus | Spotted Cetus Guard 4774 | -5/Cetus | Spotted Cetus Guard 4775 | -5/Cetus | Spotted Cetus Guard 4782 | -5/Cetus | Discovered exit to Factory (range 17) 4794 | -5/Cetus | Entered Factory 4794 | -4/Factory | Evolved 2 slots: Utility x2 5053 | -4/Factory | Lost 3 parts (1p2u) 5154 | -4/Factory | Lost 4 parts (1n1u2w) 5199 | -4/Factory | Discovered new exit (range 5) 5207 | -4/Factory | Identified exit to Research 5209 | -4/Factory | Entered Research 5209 | -3/Research | Evolved 2 slots: Propulsion x1, Utility x1 5238 | -3/Research | Lost 6 parts (4n2u) 5353 | -3/Research | Discovered new exit (range 11) 5357 | -3/Research | Identified exit to Testing 5357 | -3/Research | Entered Testing 5453 | -3/Testing | System corruption reached 10% 5508 | -3/Testing | Scanned by Researcher 5512 | -3/Testing | Lost 3 parts (1n1u1w) 5568 | -3/Testing | Core integrity fell below 50% 5594 | -3/Testing | Core integrity fell below 20% 5620 | -3/Testing | Lost 7 parts (2p2n2u1w) 5640 | -3/Testing | Destroyed by H-77 Assassin with Coil Gun Last Messages --------------- 05593_ Penetrated by Slug. 05593_ Discarded Broken Enh. Optical Array. 05594_ Slug penetrates Wall. 05594_ Slug penetrates U-05 Engineer. 05595_ U-05 Engineer builds a Door. 05596_ K-01 Serf collects debris. 05598_ Slammed into H-77 Assassin. 05598_ Penetrated by Slug. 05600_ Slug penetrates U-05 Engineer. 05600_ K-01 Serf destroyed. 05602_ Penetrated by Slug. 05602_ Slug penetrates Wall. 05602_ Penetrated by Slug. 05605_ Slug penetrates C-55 Analyst. 05605_ Slug penetrates Wall. 05626_ System corrupted: Matter fused (-5). 05637_ Slug penetrates Wall. 05637_ Penetrated by Slug. 05637_ Slug penetrates Wall. [Achievement: Just Browsing] Map ----- +----------------------------------------------------+ | ?????????????????????????????????????????????????? | | ?????????????????????????????????????????????????? | | ?????????????????????????????????????????????????? | | ?????????????????????????????????????????????????? | | ?????????????????????????????????????????????????? | | ???????????????????????????#######???????????????? | | ???????????????????????????# #???????????????? | | ????????????????????????#### #???????????????? | | ????????????????????????#""" """ #???????????????? | | ?????????????????????????"T """ ############????? | | ??????????????????????????"" """ ## ?????? | | ???????????????????????????# ## "????#??? | | ??????????################## ?# "??? #??? | | #?????????# ###+#### """ #??? | | ########### / + #??? | | # # """ "" """ ### # " #??? | | # !# "?" "" "?" #?# # """ #??? | | # # """ "" """ #?# # """" #??? | | # # "" #?# # "" #??? | | # * # """""""" #?# + #??? | | + # #?# # #??? | | # ] # #?# # #??? | | # % #######+#+########?# # #??? | | #####+########### #########u #############??? | | | !+ # h #???????? | | #####$#### # @ #???????? | | #???# #??# * # #???????? | | #???# #??#=""" # k kc #???????? | | ????# #??# "?? # u################ #???????? | | ????# #### """ # %#??????????????? #???????? | | ????+ % / # #???????????????? #???????? | | ????# #### " # #???????????????? ??????? | | ????# #??# """ # #????????????????? ?????? | | ????# #??# """ + #?????????????????? ?????? | | ????#+#??# """ # #??????????????????? ?????? | | ???? ??# # #???????????????????????????? | | ???? ??###/#### #???????????????????????????? | | ???? ??# #???????????????????????????? | | ???? ??# #???????????????????????????? | | ???? ??# #???????????????????????????? | | ???? ??+ #???????????????????????????? | | ???? ??# ########???????????????????????????? | | ???? ??# #??????????????????????????????????? | | ########## #??????????????????????????????????? | | *%= #??????????????????????????????????? | | = #??????????????????????????????????? | | #??????????????????????????????????? | | #??????????????????????????????????? | | ###+######+####??????????????????????????????????? | | #????????????????????????????????????????? | +----------------------------------------------------+ Best States ------------- Heat Dissipation 46 Energy Generation 32 Energy Capacity 595 Matter Stores 300 Matter Capacity 300 Sight Range 22 Robot Scan Range 15 Terrain Scan Density 10 Jamming Range 14 Additional Mass Support 6 Resistance: KI 20 Resistance: TH 20 Resistance: EX 20 Resistance: EM 20 Resistance: I 20 Resistance: S 20 Resistance: P 20 Evasion (%) 64 Targeting Accuracy 6 Melee Accuracy 8 Recoil Reduction 4 Offensive Hacking 20 Defensive Hacking 10 Item Schematics ----------------- Cld. Impulse Thruster | -3/Testing | Archive Robot Schematics ------------------ L-61 Swordsman | -3/Testing | Archive C-55 Analyst | -3/Testing | Archive Fabricated ------------ Nothing Alien Tech Used ----------------- Dimensional Node Initializer Achievements -------------- A New Friend Alien Tech Just Browsing Part-time Excavator Total Silence True Hacker Challenges ------------ None Game ------ Seed MolecularDecoyTerrabomb Manual? 0 Play Time 01:23:02 Cumulative 14.8 hours Start 2024.04.17 @ 19:20:58 End 2024.04.17 @ 20:48:36 Sessions 1 Manual Loads 0 Difficulty Adventurer Special Mode None Game No. 18 Rogue 3 Adventurer 14 Explorer 1 Win Type - Total 0 Types 0/0/0/0/0/0/0/0/0 Lore% 12 Gallery% 25 Achievement% 21 Wizard Run 0 Options --------- Layout 0 ASCII 0 Keyboard 1 Movement Numpad Keybinds 0 Fullscreen 2 Font 18/Terminus Map View 76x50 Zoom Use 0% Tactical HUD 1 Map Filters NONE Filters NONE Steam 1 RUN: d62de9f6-89b0-408e-bded-828462fe3a23